Cogmind - Beta 14 @@@ ROGUE MODE // 2024.08.13 @ 04:09:32 Player: Calasmeer Result: Destroyed by B2-WL7(R) with Subdweller Shrapnel Launcher Performance ------------- Evolutions (0) 0 Regions Visited (3) 600 Robots Destroyed (31) 155 Value Destroyed (825) 825 Prototype IDs (0) 0 Alien Tech Used (0) 0 Bonus (42) 42 TOTAL SCORE: 1622 Bonus ------- High Alert Combat Kills 42 Cogmind --------- Core Integrity 0/250 Matter 269/300 Energy 160/160 System Corruption 0% Temperature Cool (0) Movement Rolling (95) Ox1 Location -10/Subcaves Parts ------- > --- POWER (1) -------- Light Nuclear Core > --- PROPULSION (2) --- Wheel > --- UTILITY (2) ------ Small Storage Unit > --- WEAPON (2) ------- Grenade Launcher > --- INVENTORY (8) ---- Ion Engine Light Ion Engine Improved Heat Sink Improved Heat Sink Light Cannon Mining Claw Peak State ------------ > --- POWER ------------ Light Nuclear Core > --- PROPULSION ------- Wheel Wheel > --- UTILITY ---------- Small Storage Unit Signal Interpreter > --- WEAPON ----------- Beam Cannon Grenade Launcher > --- INVENTORY -------- Ion Engine Light Ion Engine Improved Heat Sink Improved Heat Sink Light Armor Plating Assault Rifle Light Cannon Mining Claw [Rating: 10] Favorites ----------- Power Ion Engine Engine Ion Engine Power Core Light Nuclear Core Propulsion Wheel Wheel Wheel Utility Small Storage Unit Storage Small Storage Unit Processor Signal Interpreter Protection Light Armor Plating Weapon Beam Cannon Energy Gun EM Pulse Gun Energy Cannon Beam Cannon Ballistic Gun Assault Rifle Ballistic Cannon Light Cannon Launcher Grenade Launcher Slashing Weapon Mining Claw Build | -11 -10 -10 -10 ------- Run | Yrd Mat Min Sub Slots Evolved . | . . . . Power . | . . . . Propulsion . | . . . . Utility . | . . . . Weapon . | . . . . Parts Attached 23 | 6 13 4 . Power 5 | 1 2 2 . Engine 3 | 1 2 . . Core 2 | . . 2 . Reactor . | . . . . Propulsion 4 | 2 2 . . Treads . | . . . . Leg . | . . . . Wheel 4 | 2 2 . . Hover . | . . . . Flight . | . . . . Utility 5 | 1 3 1 . Device . | . . . . Storage 1 | 1 . . . Processor 2 | . 2 . . Hackware . | . . . . Protection 2 | . 1 1 . Artifact . | . . . . Weapon 9 | 2 6 1 . Energy Gun 1 | . 1 . . Energy Cannon 1 | . 1 . . Ballistic Gun 4 | 2 2 . . Ballistic Cannon 1 | . 1 . . Launcher 1 | . . 1 . Special Weapon . | . . . . Impact Weapon . | . . . . Slashing Weapon 1 | . 1 . . Piercing Weapon . | . . . . Special Melee Weapon . | . . . . Unidentified Prototypes . | . . . . Parts Lost 10 | . 6 2 2 Power 3 | . 2 1 . Propulsion 3 | . 2 . 1 Utility 1 | . . 1 . Weapon 3 | . 2 . 1 Highest Loss Streak 2 | . 2 1 2 To Critical Strikes . | . . . . Average Slot Usage (%) 93 | . 97 88 85 Engine 8 | . 13 . . Core 5 | . . 12 14 Wheel 26 | . 25 28 28 Storage 14 | . 14 14 14 Processor 6 | . 10 1 . Protection 2 | . 3 2 . Energy Gun 1 | . 1 . . Energy Cannon 9 | . 6 14 14 Ballistic Gun 4 | . 7 . . Ballistic Cannon 6 | . 10 . . Launcher 5 | . . 14 14 Peak Build Rating 10 | 6 7 10 9 Average Rating 7 | 4 6 9 8 On Entrance 5 | . 6 7 9 Naked Turns . | . . . . Heaviest Build 19 | 14 19 19 16 Greatest Support 32 | 32 32 20 20 Greatest Overweight (x) 1 | . 1 . . Average Overweight (x) . | . . . . Largest Inventory Capacity 8 | 8 8 8 8 Average Capacity 7 | 6 8 8 8 Most Carried 8 | 2 6 8 6 Average Carried 5 | 1 4 6 6 Final Capacity 8 | 8 8 8 8 Final Carried 6 | 2 6 6 6 Class Distribution -------------------- 100% | Mutant Dominant Class ---------------- Mutant | -10/Materials Mutant | -10/Mines Mutant | -10/Subcaves Resources | -11 -10 -10 -10 ----------- Run | Yrd Mat Min Sub Matter Collected 930 | 182 449 280 19 Remotely . | . . . . Salvage Created 866 | . 555 297 14 Parts 61 | . 31 28 2 Haulers Intercepted 1 | . 1 . . Recyclers Shooed . | . . . . Parts Field Recycled . | . . . . Retrieved Matter . | . . . . Parts Self-Destructed . | . . . . Prevented . | . . . . Kills | -11 -10 -10 -10 ------- Run | Yrd Mat Min Sub Combat Hostiles Destroyed 23 | . 9 14 . Melee 2 | . 2 . . Guns 4 | . 4 . . Cannons 8 | . 3 5 . AOE 9 | . . 9 . Classes Destroyed 8 | . 6 1 1 Tunneler 2 | . 1 1 . Hauler 1 | . 1 . . Recycler 1 | . 1 . . Operator 1 | . 1 . . Watcher 3 | . 3 . . Swarmer 6 | . . 6 . Grunt 17 | . 9 8 . Artisan 1 | . . . 1 Best Kill Streak 5 | . 4 5 . Combat Bots Only 5 | . 2 5 . Max Kills in Single Turn 1 | . 1 1 1 Gunslinging . | . . . . Exploded 1 | . . 1 . Melee 1 | . 1 . . Uniques/NPCs Destroyed . | . . . . Combat | -11 -10 -10 -10 -------- Run | Yrd Mat Min Sub Hostile Shots Fired 108 | . 73 34 1 Missed 26 | . 15 11 . Damage Taken 1288 | . 887 316 85 Core 286 | . 169 56 61 Absorbed by Shields . | . . . . Core Remaining (%) 100 | 100 . . . Volleys Fired 84 | . 51 30 3 Largest 2 | . 2 2 2 Hottest 95 | . 95 90 90 Shots Fired 162 | . 100 58 4 Gun 72 | . 72 . . Cannon 59 | . 28 30 1 Launcher 31 | . . 28 3 Special . | . . . . Kinetic 82 | . 82 . . Thermal 34 | . 3 30 1 Explosive 31 | . . 28 3 Electromagnetic 15 | . 15 . . Robot Hit Streak 10 | . 9 10 . Robot Miss Streak 4 | . 4 3 . Penetration Max . | . . . . Secondary Targets . | . . . . Shots Hit Robots 98 | . 75 23 . Core Hits 52 | . 28 23 1 Critical Kills . | . . . . Critical Parts Destroyed . | . . . . Critical Strikes 1 | . 1 . . Blast 1 | . 1 . . Melee Attacks 7 | . 7 . . Impact . | . . . . Slashing 7 | . 7 . . Piercing . | . . . . Sneak Attacks . | . . . . Combat Hostiles . | . . . . Follow-up Attacks . | . . . . Damage Inflicted 2292 | . 1144 1089 59 Guns 646 | . 646 . . Cannons 624 | . 359 265 . Explosions 929 | . 46 824 59 Melee 93 | . 93 . . Ramming . | . . . . Kinetic 815 | . 815 . . Thermal 363 | . 98 265 . Explosive 883 | . . 824 59 Electromagnetic 138 | . 138 . . Impact . | . . . . Slashing 93 | . 93 . . Piercing . | . . . . Highest Corruption . | . . . . Average Corruption . | . . . . Corruption Purged . | . . . . Corruption Blocked . | . . . . Overload Shots . | . . . . Overflow Damage 30 | . 5 22 3 Projectiles 5 | . 5 . . Explosions 25 | . . 22 3 Melee . | . . . . Knockbacks 5 | . 5 . . Impact . | . . . . Kinetic 5 | . 5 . . Secondary . | . . . . Self-Inflicted Damage 126 | . 55 55 16 Shots 5 | . 1 3 1 Rammed . | . . . . Targets Rammed . | . . . . Kicked . | . . . . Crushed . | . . . . Highest Temperature 360 | . 111 360 . Average Temperature 78 | . 36 103 . Received Heat Transfer 564 | . 456 108 . Effects 1 | . . 1 . Damage (minor) 1 | . . 1 . Siege Activations . | . . . . Robots Corrupted . | . . . . Combat Hostiles . | . . . . Parts Fried 1 | . 1 . . Impact Corruptions . | . . . . Robots Melted . | . . . . Combat Hostiles . | . . . . Parts Melted . | . . . . Heat Transferred 716 | . 161 555 . Parts Sabotaged . | . . . . Parts Stolen . | . . . . Parts Stripped . | . . . . Power Chain Reactions 1 | . 1 . . Alert | -11 -10 -10 -10 ------- Run | Yrd Mat Min Sub Peak Influence 578 | . 189 578 . Initial . | . . . . Average 173 | . 56 359 . Maximum Alert Level 2 | . . 2 . Low Security (%) 65 | 100 100 12 . Level 1 25 | . . 64 . Level 2 9 | . . 23 . Level 3 . | . . . . Level 4 . | . . . . Level 5 . | . . . . High Security . | . . . . Max Security . | . . . . Squads Dispatched 1 | . 1 . . Investigation . | . . . . Extermination . | . . . . Reinforcement 1 | . 1 . . Assault . | . . . . Garrison . | . . . . Intercept . | . . . . Searches Triggered . | . . . . Construction Impeded . | . . . . Haulers Reinforced . | . . . . Active Scanning Responses . | . . . . Cargo Convoy Interrupts . | . . . . Stealth | -11 -10 -10 -10 --------- Run | Yrd Mat Min Sub Distress Signals 1 | . 1 . . Communications Jammed . | . . . . Distress Signals . | . . . . Times Spotted 38 | . 23 14 1 Peak Tracking Total 5 | . 5 3 1 Tactical Retreats 3 | . 1 2 . Traps | -11 -10 -10 -10 ------- Run | Yrd Mat Min Sub Traps Triggered 1 | . 1 . . Indirectly . | . . . . Trap Hack Attempts . | . . . . Triggered . | . . . . Disarmed . | . . . . Reprogrammed . | . . . . Reused . | . . . . Traps Extracted . | . . . . Installed . | . . . . Triggered . | . . . . Machines | -11 -10 -10 -10 ---------- Run | Yrd Mat Min Sub Machines Disabled 2 | . 1 1 . Max in Single Turn 1 | . 1 1 . Machines Repaired . | . . . . Machines Dismantled . | . . . . Machines Sabotaged . | . . . . Overloaded Fab Kills . | . . . . Hacking | -11 -10 -10 -10 --------- Run | Yrd Mat Min Sub Machines Accessed 7 | . 6 1 . Terminals 7 | . 6 1 . Fabricators . | . . . . Repair Stations . | . . . . Recycling Units . | . . . . Scanalyzers . | . . . . Garrison Access . | . . . . Total Hacks 19 | . 18 1 . Successful 9 | . 8 1 . Failed 9 | . 9 . . Catastrophic . | . . . . Database Lockouts 1 | . 1 . . Manual 15 | . 15 . . Terminals 19 | . 18 1 . Fabricators . | . . . . Repair Stations . | . . . . Recycling Units . | . . . . Scanalyzers . | . . . . Garrison Access . | . . . . Terminal Hacks 4 | . 3 1 . Part Schematic 1 | . 1 . . Locate Traps 2 | . 2 . . Dispatch Records 1 | . . 1 . Fabricator Hacks . | . . . . Repair Station Hacks . | . . . . Recycling Unit Hacks . | . . . . Scanalyzer . | . . . . Garrison Access Hacks . | . . . . Unauthorized Hacks 5 | . 5 . . Terminals 5 | . 5 . . Botnet 5 | . 5 . . Fabricators . | . . . . Repair Stations . | . . . . Recycling Units . | . . . . Scanalyzers . | . . . . Garrison Access . | . . . . Data Cores Recovered . | . . . . Used . | . . . . Hacking Detections 4 | . 4 . . Full Trace Events . | . . . . Feedback Events . | . . . . Feedback Blocked . | . . . . Robot Schematics Acquired . | . . . . Robots Built . | . . . . Authchips . | . . . . Time . | . . . . Total Robot Build Rating . | . . . . Part Schematics Acquired 1 | . 1 . . Parts Built . | . . . . Authchips . | . . . . Time . | . . . . Total Part Build Rating . | . . . . Parts Repaired . | . . . . Time . | . . . . Parts Recycled . | . . . . Recycled Matter . | . . . . Retrieved Matter . | . . . . Retrieved Components . | . . . . Parts Scanalyzed . | . . . . Part Schematics Acquired . | . . . . Parts Damaged . | . . . . Bothacking | -11 -10 -10 -10 ------------ Run | Yrd Mat Min Sub Used RIF Installer . | . . . . Robots Hacked . | . . . . Non-combat . | . . . . Combat . | . . . . Robot Hacks Applied . | . . . . Relay Couplers Released . | . . . . Fabnet Peak Effective % . | . . . . Robots Rewired . | . . . . Allies Hacked . | . . . . Hacks Repelled . | . . . . Allies | -11 -10 -10 -10 -------- Run | Yrd Mat Min Sub Total Allies . | . . . . Largest Group . | . . . . Highest-Rated Group . | . . . . Highest-Rated Ally . | . . . . Total Orders . | . . . . Ally Attacks . | . . . . Total Damage . | . . . . Kills . | . . . . Allies Corrupted . | . . . . Allies Melted . | . . . . Intel | -11 -10 -10 -10 ------- Run | Yrd Mat Min Sub Robot Analysis Total . | . . . . Derelict Logs Recovered 1 | . . 1 . Drone Launches . | . . . . Drone Recoveries . | . . . . Exploration | -11 -10 -10 -10 ------------- Run | Yrd Mat Min Sub Turns Passed 2364 | 64 1345 903 52 Spaces Moved 1879 | 51 1299 471 58 Core 2 | 2 . . . Treads . | . . . . Legs . | . . . . Wheels 1877 | 49 1299 471 58 Hover . | . . . . Flight . | . . . . Fastest Speed 50 | 50 80 80 80 Average Speed 83 | 98 84 80 80 Slowest Speed 100 | 100 100 80 80 Overloaded Moves . | . . . . Propulsion Burnouts . | . . . . Robots Hopped . | . . . . Cave-ins Triggered . | . . . . Exploration Rate (%) 50 | 4 98 93 6 Regions Visited 3 Branch Regions 2 Pre-discovered Areas 1 | . . 1 . Known Exits Taken 1 | . 1 . . Unknown Exits Taken 2 | 1 . 1 . Scrap Searched 1 | . . 1 . Spaces Dug 19 | . . 19 . Terrain Destroyed 206 | . 4 175 27 Melee . | . . . . Projectile . | . . . . AOE 206 | . 4 175 27 Terrain Rammed . | . . . . Walls Destroyed . | . . . . Machines Disabled . | . . . . Actions | -11 -10 -10 -10 --------- Run | Yrd Mat Min Sub Total 2481 | 62 1421 937 61 Wait 476 | 4 42 430 . Move 1876 | 50 1298 470 58 Hop . | . . . . Pick Up 12 | 2 8 2 . Fast Attach 12 | 6 5 1 . Attach 3 | . 3 . . Detach 1 | . 1 . . Swap 8 | . 5 3 . Drop 2 | . 1 1 . Fire 84 | . 51 30 3 Melee 7 | . 7 . . Ram . | . . . . Kick . | . . . . Crush . | . . . . Escape Stasis . | . . . . Rewire . | . . . . Trap . | . . . . Miscellaneous . | . . . . Route ------- -11/Scrapyard -10/Materials (discovered 5 exits: *Mat x3 / *Min x2) -10/Mines (discovered 3 exits: *Mat x2 / [*Sub]) -10/Subcaves History --------- Turn | Location | Event 16 | -11/Scrapyard | Discovered new exit (range 15) 65 | -11/Scrapyard | Entered Materials 130 | -10/Materials | Discovered new exit (range 5) 316 | -10/Materials | Core integrity fell below 50% 336 | -10/Materials | Build established: Mutant 553 | -10/Materials | Discovered new exit (range 10) 719 | -10/Materials | Discovered new exit (range 15) 785 | -10/Materials | Discovered new exit (range 15) 901 | -10/Materials | Discovered new exit (range 13) 911 | -10/Materials | Central database locked down 1132 | -10/Materials | Identified exit to Materials 1276 | -10/Materials | Identified exit to Mines 1410 | -10/Materials | Entered Mines 1622 | -10/Mines | Discovered exit to Materials (range 12) 1629 | -10/Mines | Learned location of Zion (-7) 1678 | -10/Mines | Core integrity fell below 20% 1787 | -10/Mines | Discovered exit to Materials (range 9) 2285 | -10/Mines | Discovered new exit (range 8) 2313 | -10/Mines | Entered Subcaves 2337 | -10/Subcaves | Shifting Twisted Machinery released Shrapnel Trap 2342 | -10/Subcaves | Shifting Twisted Machinery released Shrapnel Trap 2365 | -10/Subcaves | Ambushed by Subdweller buried in earth 2365 | -10/Subcaves | Destroyed by B2-WL7(R) with Subdweller Shrapnel Launcher Last Messages --------------- 02250_ The unstable cave ceiling collapses. 02284_ T-07 Excavator is excavating. 02285_ EXIT=FOUND LOCATION=UNKNOWN AMBIENT_HEAT=-10 GOAL=ESCAPE 02316_ Acquired 6 matter. 02334_ Acquired 13 matter. Shrapnel Trap falls loose from the Twisted Machinery. 02349_ P8-D4D(u) builds Twisted Machinery. 02358_ UO-749(u) builds Twisted Machinery. 02360_ Beam Cannon destroyed. 02360_ Destroyed Beam Cannon. 02360_ UO-749(u) builds Twisted Machinery. 02361_ P8-D4D(u) tweaks Twisted Machinery. 02362_ UO-749(u) builds Twisted Machinery. 02365_ P8-D4D(u) cries out in pain. 02365_ P8-D4D(u) destroyed. 02365_ Wheel destroyed. Map ----- +----------------------------------------------------+ | ??????????????????????????????????## ####???? | | ???????????????????????????????????# ##?????????? | | ???????????????????????????????????# #?????????? | | ??????????????????????????????????## ##?????????? | | ??????????????????????????????????# #??###?????? | | ??????????????????????????????????# ### #?????? | | ??????????????????????????????????## # #?????? | | ???????????????????????????????????# ##????? | | ?????????????????????????###???????# #????? | | ???????????????????????? "?###### #????? | | ????????????????????????% %"## ## " ##????? | | ??????????????????????# &""" "#######?????? | | ???????????????????????# % """"" ##???????????? | | ????????????????????????" """ ## #????? | | ?????????????????????????"##"## & " #????? | | ????????????????????????### ""# """"" # # #???? | | ????????????????????????# # # #??????????? | | ?????????????????????????# """"" #?????????? | | ????????????????????????## ""### #?????????? | | ????????????????????????#"""#### ##??###?????????? | | ????????????????????????# u##??###???????????????? | | ????????????????????????# #????????????????????? | | ????????????????????????# ##???????????????????? | | ???????????????????????## "#???????????????????? | | ???????????????????????# "#???????????????????? | | ???????????????????????##@ "#???????????????????? | | ??????????????????????? ##???????????????????? | | ??????????????????????# #????????????????????? | | ?????????????????????# #???????????????????? | | ?????????????????????# = ##???????????????????? | | ?????????????????????# %R #????????????????????? | | ?????????????????????# * #????????????????????? | | ?????????????????????## #????????????????????? | | ??????????????????????# " #????????????????????? | | ?????????????????????? " #????????????????????? | | ?????????????????????? "##????????????????????? | | ?????????????????????? #?????????????????????? | | ?????????????????????## #??????????????????????? | | ??????????????????????#####??????????????????????? | | ?????????????????????????????????????????????????? | | ?????????????????????????????????????????????????? | | ?????????????????????????????????????????????????? | | ?????????????????????????????????????????????????? | | ?????????????????????????????????????????????????? | | ?????????????????????????????????????????????????? | | ?????????????????????????????????????????????????? | | ?????????????????????????????????????????????????? | | ?????????????????????????????????????????????????? | | ?????????????????????????????????????????????????? | | ?????????????????????????????????????????????????? | +----------------------------------------------------+ Best States ------------- Heat Dissipation 25 Energy Generation 14 Energy Capacity 250 Matter Stores 300 Matter Capacity 300 Sight Range 16 Terrain Scan Density 10 Armor Coverage 150 Evasion (%) 44 Item Schematics ----------------- Signal Interpreter | -10/Materials | Hacked Robot Schematics ------------------ None Fabricated ------------ Nothing Alien Tech Used ----------------- None Achievements -------------- None Challenges ------------ None Game ------ Seed WardroneHypervelocityStorm Manual? 0 Play Time 00:20:42 Cumulative 12.6 hours Start 2024.08.13 @ 03:44:32 End 2024.08.13 @ 04:09:32 Sessions 1 Manual Loads 0 Difficulty Rogue Special Mode None Game No. 16 Rogue 15 Adventurer 0 Explorer 1 Win Type - Total 0 Types 0/0/0/0/0/0/0/0/0 Lore% 22 Gallery% 17 Achievement% 19 Wizard Run 0 Options --------- Layout 2 ASCII 0 Keyboard 0 Movement Mouse Keybinds 0 Fullscreen 2 Font 32/Smallcaps Map View 50x44 Zoom Use 0% Tactical HUD 1 Map Filters NONE Filters NONE Steam 1 RUN: cff30cbe-dbd4-4942-aa14-ada3e6744c7d